fUST/lending_fUST_20251210
["ID","MTS","AMOUNT","RATE_DAILY","PERIOD"]
[398029016,1765307447222,-1015.6,0.00016697,2]
[398029017,1765307447232,-250.0,0.00016698,2]
[398029018,1765307447242,-250.814,0.00016698,2]
[398029019,1765307447252,-150.337,0.00016698,2]
[398029020,1765307447262,-231.363,0.00016698,2]
[398029021,1765307447272,-150.0,0.00016698,2]
[398029022,1765307447281,-760.0,0.00016986,2]
[398029023,1765307447290,-151.0,0.00017,2]
[398029024,1765307447301,-151.0,0.00017,2]
[398029025,1765307447310,-1020.72625865,0.00017007,2]
[398029026,1765307447320,-3333.27125628,0.0001705,7]
[398029027,1765307447330,-347.30356795,0.0001705,7]
[398029028,1765307447341,-1500.0,0.00017108,2]
[398029029,1765307447350,-389.7599583,0.00017173,2]
[398029030,1765307447360,-270.15706897,0.0001726,2]
[398029031,1765307447369,-300.54876344,0.00017262,2]
[398029032,1765307447379,-571.12070489,0.00017262,2]
[398029033,1765307447388,-860.0,0.00017534,2]
[398029034,1765307447399,-5896.70528487,0.0001759,7]
[398029035,1765307447409,-151.0,0.000177,2]
[398029036,1765307447419,-151.0,0.000177,2]
[398029037,1765307447429,-151.0,0.000177,2]
[398029038,1765307447438,-208.02879936,0.000178,3]
[398029039,1765307447447,-24085.99477915,0.000178,3]
[398029040,1765307447543,-151.0,0.0001,2]
[398029041,1765307447554,-151.0,0.0001,2]
[398029042,1765307447564,-151.0,0.0001,2]
[398029043,1765307447573,-264.12583363,0.00012747,7]
[398029044,1765307447750,-151.0,0.0001,2]
[398029045,1765307447760,-151.0,0.0001,2]
[398029046,1765307447770,-151.0,0.0001,2]
[398029047,1765307447780,-151.0,0.0001,2]
[398029048,1765307447790,-104.78715967,0.00012747,7]
[398029049,1765307447800,-163.93983771,0.000129,2]
[398029050,1765307447810,-1131.77300214,0.00014185,7]
[398029051,1765307447986,-151.0,0.0001,2]
[398029052,1765307447997,-151.0,0.00012329,2]
[398029053,1765307448007,-151.0,0.00012329,2]
[398029054,1765307448021,-151.0,0.00012329,2]
[398029055,1765307448032,-151.0,0.00012329,2]
[398029056,1765307448042,-151.0,0.00012329,2]
[398029057,1765307448051,-151.0,0.00012329,2]
[398029058,1765307448062,-151.0,0.00012329,2]
[398029059,1765307448071,-151.0,0.00012329,2]
[398029060,1765307448082,-343.87897105,0.00014185,7]
[398029061,1765307448093,-15979.77369795,0.000178,3]
[398029102,1765308631885,-150.0,7.136e-05,2]
[398029104,1765308631895,-521.0,7.136e-05,2]
[398029106,1765308631904,-175.10842439,7.177e-05,2]
[398029108,1765308631913,-150.0,7.784e-05,2]
[398029110,1765308631922,-150.0,8.433e-05,2]
[398029112,1765308631931,-300.0,8.957e-05,2]
[398029113,1765308631940,-976.0,8.957e-05,2]
[398029114,1765308631949,-334.0,8.958e-05,2]
[398029115,1765308631958,-334.0,8.958e-05,2]
[398029116,1765308631968,-334.0,8.958e-05,2]
[398029118,1765308631978,-334.0,8.958e-05,2]
[398029120,1765308631988,-334.0,8.958e-05,2]
[398029122,1765308631998,-334.0,8.958e-05,2]
[398029124,1765308632008,-334.0,8.958e-05,2]
[398029126,1765308632017,-334.0,8.958e-05,2]
[398029128,1765308632026,-334.0,8.958e-05,2]
[398029130,1765308632035,-334.0,8.958e-05,2]
[398029131,1765308632044,-334.0,8.958e-05,2]
[398029132,1765308632053,-334.0,8.958e-05,2]
[398029133,1765308632062,-334.0,8.958e-05,2]
[398029134,1765308632070,-334.0,8.958e-05,2]
[398029135,1765308632079,-334.0,8.958e-05,2]
[398029136,1765308632088,-334.0,8.958e-05,2]
[398029137,1765308632097,-334.0,8.958e-05,2]
[398029138,1765308632105,-334.0,8.958e-05,2]
[398029139,1765308632114,-334.0,8.958e-05,2]
[398029140,1765308632123,-334.0,8.958e-05,2]
[398029141,1765308632132,-334.0,8.958e-05,2]
[398029142,1765308632140,-334.0,8.958e-05,2]
[398029143,1765308632150,-334.0,8.958e-05,2]
[398029144,1765308632159,-334.0,8.958e-05,2]
[398029145,1765308632168,-334.0,8.958e-05,2]
[398029146,1765308632177,-334.0,8.958e-05,2]
[398029147,1765308632186,-334.0,8.958e-05,2]
[398029148,1765308632195,-334.0,8.958e-05,2]
[398029149,1765308632204,-334.0,8.958e-05,2]
[398029150,1765308632212,-334.0,8.958e-05,2]
[398029151,1765308632221,-334.0,8.958e-05,2]
[398029152,1765308632230,-341.13558436,8.958e-05,2]
[398029153,1765308632239,-150.0,9.082e-05,2]
[398029154,1765308632249,-347.30356795,9.091e-05,2]
[398029155,1765308632260,-600.0,9.136e-05,2]
[398029156,1765308632272,-300.0,9.136e-05,2]
[398029157,1765308632281,-206.62794078,9.177e-05,2]
[398029158,1765308632290,-150.0,9.73e-05,2]
[398029159,1765308632299,-500.0,0.0001,2]
[398029160,1765308632310,-10000.0,0.0001,2]
[398029161,1765308632319,-151.0,0.0001,2]
[398029162,1765308632327,-151.0,0.0001,2]
[398029164,1765308632337,-151.0,0.0001,2]
[398029166,1765308632346,-151.0,0.0001,2]
[398029168,1765308632355,-157.63042452,0.0001,2]
[398029169,1765308632364,-151.0,0.0001,2]
[398029171,1765308632375,-500.0,0.0001,2]
[398029173,1765308632388,-500.0,0.0001,2]
[398029175,1765308632398,-500.0,0.0001,2]
[398029177,1765308632407,-151.0,0.0001,2]
[398029178,1765308632416,-500.0,0.0001,2]
[398029179,1765308632426,-198.0,0.0001,2]
[398029180,1765308632435,-500.0,0.0001,2]
[398029181,1765308632444,-151.0,0.0001,2]
[398029182,1765308632454,-500.0,0.0001,2]
[398029183,1765308632463,-151.0,0.0001,2]
[398029184,1765308632472,-500.0,0.0001,2]
[398029185,1765308632481,-151.0,0.0001,2]
[398029186,1765308632490,-151.0,0.0001,2]
[398029187,1765308632500,-160.53033979,0.0001,2]
[398029189,1765308632510,-204.18209054,0.0001,2]
[398029190,1765308632519,-500.0,0.0001,2]
[398029192,1765308632529,-151.56415087,0.0001,2]
[398029194,1765308632538,-151.0,0.0001,2]
[398029195,1765308632547,-151.0,0.0001,2]
[398029196,1765308632558,-720.0,0.0001005,2]
[398029197,1765308632567,-151.0,0.00010137,2]
[398029198,1765308632578,-500.0,0.00010137,2]
[398029199,1765308632587,-501.43780591,0.00010137,2]
[398029200,1765308632597,-500.94323605,0.00010137,2]
[398029201,1765308632607,-151.0,0.00010137,2]
[398029202,1765308632616,-500.0,0.00010137,2]
[398029203,1765308632626,-500.0,0.00010137,2]
[398029204,1765308632635,-151.143584,0.00010137,2]
[398029205,1765308632644,-151.0,0.00010137,2]
[398029206,1765308632654,-500.0,0.00010137,2]
[398029207,1765308632663,-500.0,0.00010137,2]
[398029208,1765308632672,-198.0,0.00010137,2]
[398029209,1765308632682,-247.86319052,0.00010137,2]
[398029210,1765308632691,-500.0,0.00010137,2]
[398029211,1765308632700,-151.0,0.00010137,2]
[398029212,1765308632710,-151.0,0.00010274,2]
[398029213,1765308632719,-500.0,0.00010274,2]
[398029214,1765308632728,-151.0,0.00010274,2]
[398029215,1765308632738,-500.0,0.00010274,2]
[398029216,1765308632749,-500.0,0.00010274,2]
[398029217,1765308632758,-151.0,0.00010274,2]
[398029218,1765308632767,-500.0,0.00010274,2]
[398029219,1765308632777,-500.0,0.00010274,2]
[398029220,1765308632786,-500.0,0.00010274,2]
[398029221,1765308632795,-151.0,0.00010274,2]
[398029222,1765308632804,-150.0,0.00010379,2]
[398029223,1765308632813,-245.0,0.00010411,2]
[398029224,1765308632823,-469.7107041,0.00010411,2]
[398029225,1765308632832,-198.99256817,0.00010411,2]
[398029226,1765308632841,-500.0,0.00010411,2]
[398029227,1765308632850,-500.0,0.00010411,2]
[398029228,1765308632860,-200.46075927,0.00010411,2]
[398029229,1765308632870,-538.21274117,0.00010411,2]
[398029230,1765308632879,-500.0,0.00010411,2]
[398029231,1765308632888,-151.0,0.00010411,2]
[398029232,1765308632897,-2000.0,0.0001051,2]
[398029233,1765308632907,-500.0,0.00010548,2]
[398029234,1765308632916,-500.0,0.00010548,2]
[398029235,1765308632926,-500.0,0.00010548,2]
[398029236,1765308632936,-500.0,0.00010685,2]
[398029237,1765308632945,-500.0,0.00010685,2]
[398029238,1765308632956,-500.0,0.00010685,2]
[398029239,1765308632965,-500.0,0.00010822,2]
[398029240,1765308632974,-500.0,0.00010822,2]
[398029241,1765308632983,-500.0,0.00010822,2]
[398029242,1765308632992,-500.0,0.00010959,2]
[398029243,1765308633002,-500.0,0.00010959,2]
[398029244,1765308633011,-174.78,0.00011028,2]
[398029245,1765308633020,-864.0,0.00011055,2]
[398029246,1765308633030,-500.0,0.00011096,2]
[398029247,1765308633039,-500.0,0.00011096,2]
[398029248,1765308633048,-238.14745718,0.00011177,2]
[398029249,1765308633058,-500.0,0.00011233,2]
[398029250,1765308633067,-500.0,0.00011233,2]
[398029251,1765308633076,-500.0,0.0001137,2]
[398029252,1765308633085,-500.0,0.00011507,2]
[398029253,1765308633094,-500.0,0.00011644,2]
[398029254,1765308633103,-199.75,0.00011677,2]
[398029255,1765308633112,-500.0,0.00011781,2]
[398029256,1765308633122,-500.0,0.00011918,2]
[398029257,1765308633130,-500.0,0.00012055,2]
[398029258,1765308633139,-1000.0,0.0001216,2]
[398029259,1765308633148,-224.72,0.00012325,2]
[398029260,1765308633157,-163.93983769,0.000129,2]
[398029261,1765308633167,-249.69,0.00012974,2]
[398029262,1765308633176,-269.66697357,0.00013177,2]
[398029263,1765308633185,-500.0,0.00013273,2]
[398029264,1765308633194,-500.0,0.00013273,2]
[398029265,1765308633203,-500.0,0.00013273,2]
[398029266,1765308633212,-500.0,0.00013273,2]
[398029267,1765308633222,-500.0,0.00013273,2]
[398029268,1765308633231,-500.0,0.00013273,2]
[398029269,1765308633241,-500.0,0.00013273,2]
[398029270,1765308633251,-1000.0,0.00013376,2]
[398029271,1765308633260,-244.0,0.00013376,2]
[398029272,1765308633269,-300.0,0.00013673,2]
[398029273,1765308633279,-500.0,0.00013698,2]
[398029274,1765308633288,-216.89,0.00013698,2]
[398029275,1765308633297,-500.0,0.00013699,2]
[398029276,1765308633306,-500.0,0.00013699,2]
[398029277,1765308633315,-330.93362718,0.00013699,2]
[398029289,1765308637994,-169.06637282,0.00013699,2]
[398029290,1765308638003,-128.02136575,0.00013699,2]
[398029304,1765308640172,-371.97863425,0.00013699,2]
[398029305,1765308640182,-500.0,0.00013699,2]
[398029306,1765308640191,-500.0,0.00013699,2]
[398029307,1765308640201,-461.36305817,0.00013699,2]
[398029323,1765308643021,-38.63694183,0.00013699,2]
[398029324,1765308643030,-160.0,0.00013699,2]
[398029325,1765308643040,-1000.0,0.00013821,2]
[398029326,1765308643049,-1000.0,0.00013821,2]
[398029327,1765308643058,-17.14819443,0.00013821,2]
[398029328,1765308643069,-982.85180557,0.00013821,2]
[398029329,1765308643078,-1000.0,0.00013821,2]
[398029330,1765308643087,-97.89819486,0.00013821,2]
[398029399,1765308645902,-1000.52919987,0.00013821,2]
[398029400,1765308645912,-1000.0,0.00013821,2]
[398029401,1765308645924,-1000.0,0.00013821,2]
[398029402,1765308645934,-171.0,0.00014,3]
[398029403,1765308645943,-600.0,0.00014221,2]
[398029404,1765308645953,-1000.0,0.00014247,2]
[398029405,1765308645962,-1000.0,0.00014247,2]
[398029406,1765308645972,-1000.0,0.00014247,2]
[398029407,1765308645982,-1000.0,0.00014247,2]
[398029408,1765308645991,-1000.0,0.00014247,2]
[398029409,1765308646001,-1000.0,0.00014247,2]
[398029410,1765308646011,-1000.0,0.00014247,2]
[398029411,1765308646022,-260.0,0.00014247,2]
[398029412,1765308646031,-600.0,0.00014279,2]
[398029413,1765308646041,-1159.20767425,0.00014368,2]
[398029414,1765308646053,-340.79232575,0.00014368,2]
[398029415,1765308646062,-277.54289179,0.00014368,2]
[398029416,1765308646074,-1222.45710821,0.00014368,2]
[398029417,1765308646083,-1500.0,0.00014368,2]
[398029418,1765308646093,-1500.0,0.00014368,2]
[398029419,1765308646102,-1500.0,0.00014368,2]
[398029420,1765308646111,-1500.0,0.00014368,2]
[398029421,1765308646121,-388.42369258,0.00014719,2]
[398029422,1765308646131,-500.0,0.00014719,2]
[398029423,1765308646140,-500.0,0.00014719,2]
[398029424,1765308646149,-500.0,0.00014719,2]
[398029425,1765308646159,-500.0,0.00014719,2]
[398029426,1765308646169,-500.0,0.00014719,2]
[398029427,1765308646179,-500.0,0.00014719,2]
[398029428,1765308646188,-500.0,0.00014719,2]
[398029429,1765308646198,-500.0,0.00014719,2]
[398029430,1765308646207,-500.0,0.00014719,2]
[398029431,1765308646217,-500.0,0.00014719,2]
[398029432,1765308646227,-500.0,0.00014719,2]
[398029433,1765308646236,-500.0,0.00014719,2]
[398029434,1765308646246,-500.0,0.00014719,2]
[398029435,1765308646256,-500.0,0.00014719,2]
[398029436,1765308646266,-500.0,0.00014719,2]
[398029437,1765308646274,-500.0,0.00014719,2]
[398029438,1765308646284,-500.0,0.00014719,2]
[398029439,1765308646600,-259.25,0.0001472,2]
[398029440,1765308646611,-308.84948516,0.0001472,2]
[398029441,1765308646621,-500.0,0.0001472,2]
[398029442,1765308646631,-400.0,0.0001472,2]
[398029443,1765308646640,-500.0,0.0001472,2]
[398029444,1765308646650,-1000.0,0.0001472,2]
[398029445,1765308646659,-500.0,0.0001472,2]
[398029446,1765308646670,-323.98320366,0.0001472,2]
[398029447,1765308646680,-500.0,0.0001472,2]
[398029448,1765308646689,-500.0,0.0001472,2]
[398029449,1765308646699,-500.0,0.0001472,2]
[398029450,1765308646708,-369.19400327,0.0001472,2]
[398029451,1765308646717,-500.0,0.0001472,2]
[398029452,1765308646727,-20000.0,0.0001472,2]
[398029453,1765308646737,-500.0,0.0001472,2]
[398029454,1765308646747,-153.99003068,0.0001472,2]
[398029455,1765308646757,-285.7559916,0.0001472,2]
[398029456,1765308646766,-250.0,0.0001472,2]
[398029457,1765308646776,-250.0,0.0001472,2]
[398029458,1765308646786,-250.0,0.0001472,2]
[398029459,1765308646795,-250.0,0.0001472,2]
[398029460,1765308646805,-250.0,0.0001472,2]
[398029461,1765308646815,-500.0,0.0001472,2]
[398029462,1765308646824,-360.88579214,0.0001472,2]
[398029463,1765308646834,-500.0,0.0001472,2]
[398029464,1765308646844,-500.0,0.0001472,2]
[398029465,1765308646854,-500.0,0.0001472,2]
[398029466,1765308646864,-174.84427976,0.0001472,2]
[398029467,1765308646873,-500.0,0.0001472,2]
[398029468,1765308646883,-500.0,0.0001472,2]
[398029469,1765308646892,-533.88981491,0.0001472,2]
[398029470,1765308646902,-500.0,0.0001472,2]
[398029471,1765308646911,-500.0,0.0001472,2]
[398029472,1765308646920,-500.0,0.0001472,2]
[398029473,1765308646929,-500.0,0.0001472,2]
[398029474,1765308646939,-500.0,0.0001472,2]
[398029475,1765308646948,-500.0,0.0001472,2]
[398029476,1765308646958,-500.0,0.0001472,2]
[398029477,1765308646968,-900.0,0.00014768,2]
[398029478,1765308646977,-1501.24766935,0.00014795,2]
[398029479,1765308646988,-1500.0,0.00014795,2]
[398029480,1765308646998,-1500.0,0.00014795,2]
[398029481,1765308647008,-1500.0,0.00014795,2]
[398029482,1765308647018,-1500.0,0.00014795,2]
[398029483,1765308647027,-1500.0,0.00014795,2]
[398029484,1765308647037,-1500.0,0.00014795,2]
[398029485,1765308647047,-360.0,0.00014795,2]
[398029486,1765308647057,-292.12359064,0.00014904,2]
[398029487,1765308647066,-205.10848682,0.00014904,2]
[398029488,1765308647075,-369.19527628,0.00014904,2]
[398029489,1765308647084,-151.0,0.00014915,2]
[398029490,1765308647094,-229.648628,0.00014915,2]
[398029491,1765308647103,-162.389992,0.00014915,2]
[398029492,1765308647112,-151.0,0.00014915,2]
[398029493,1765308647121,-250.066685,0.00014915,2]
[398029494,1765308647131,-250.066685,0.00014915,2]
[398029495,1765308647140,-250.066685,0.00014915,2]
[398029496,1765308647149,-250.066685,0.00014915,2]
[398029497,1765308647159,-151.0,0.00014915,2]
[398029498,1765308647168,-151.0,0.00014915,2]
[398029499,1765308647179,-151.0,0.00014915,2]
[398029500,1765308647188,-151.0,0.00014915,2]
[398029501,1765308647198,-151.0,0.00014915,2]
[398029502,1765308647207,-196.215346,0.00014915,2]
[398029503,1765308647217,-151.0,0.00014915,2]
[398029504,1765308647226,-151.0,0.00014915,2]
[398029505,1765308647236,-151.0,0.00014915,2]
[398029506,1765308647247,-245.886075,0.00014915,2]
[398029507,1765308647257,-151.0,0.00014915,2]
[398029508,1765308647267,-151.0,0.00014915,2]
[398029509,1765308647277,-151.0,0.00014915,2]
[398029510,1765308647288,-176.537843,0.00014915,2]
[398029511,1765308647298,-151.0,0.00014915,2]
[398029512,1765308647308,-176.537843,0.00014915,2]
[398029513,1765308647319,-176.537843,0.00014915,2]
[398029514,1765308647336,-176.537843,0.00014915,2]
[398029515,1765308647352,-151.0,0.00014915,2]
[398029516,1765308647362,-151.0,0.00014915,2]
[398029517,1765308647372,-718.923835,0.00014915,2]
[398029518,1765308647384,-151.0,0.00014915,2]
[398029519,1765308647394,-718.923835,0.00014915,2]
[398029520,1765308647404,-718.923835,0.00014915,2]
[398029521,1765308647413,-151.0,0.00014915,2]
[398029522,1765308647424,-718.923835,0.00014915,2]
[398029523,1765308647434,-151.0,0.00014915,2]
[398029524,1765308647444,-151.0,0.00014915,2]
[398029525,1765308647453,-151.0,0.00014915,2]
[398029526,1765308647464,-151.0,0.00014915,2]
[398029527,1765308647474,-151.0,0.00014915,2]
[398029528,1765308647485,-202.471472,0.00014915,2]
[398029529,1765308647495,-222.495628,0.00014915,2]
[398029530,1765308647505,-151.0,0.00014915,2]
[398029531,1765308647514,-222.495628,0.00014915,2]
[398029532,1765308647524,-356.157462,0.00014915,2]
[398029533,1765308647534,-222.495628,0.00014915,2]
[398029534,1765308647545,-356.157462,0.00014915,2]
[398029535,1765308647555,-151.0,0.00014915,2]
[398029536,1765308647565,-356.157462,0.00014915,2]
[398029537,1765308647576,-222.495628,0.00014915,2]
[398029538,1765308647586,-151.0,0.00014915,2]
[398029539,1765308647596,-181.084722,0.00014915,2]
[398029540,1765308647606,-356.157462,0.00014915,2]
[398029541,1765308647617,-151.0,0.00014915,2]
[398029542,1765308647627,-381.563495,0.00014915,2]
[398029543,1765308647637,-151.0,0.00014915,2]
[398029544,1765308647647,-381.563495,0.00014915,2]
[398029545,1765308647657,-381.563495,0.00014915,2]
[398029546,1765308647667,-381.563495,0.00014915,2]
[398029547,1765308647676,-409.17794,0.00014915,2]
[398029548,1765308647685,-409.17794,0.00014915,2]
[398029549,1765308647695,-409.17794,0.00014915,2]
[398029550,1765308647705,-409.17794,0.00014915,2]
[398029551,1765308647714,-151.0,0.00014915,2]
[398029552,1765308647725,-239.177355,0.00014915,2]
[398029553,1765308647734,-239.177355,0.00014915,2]
[398029554,1765308647744,-239.177355,0.00014915,2]
[398029555,1765308647753,-239.177355,0.00014915,2]
[398029556,1765308647764,-262.762054,0.00014915,2]
[398029557,1765308647774,-262.762054,0.00014915,2]
[398029558,1765308647783,-262.762054,0.00014915,2]
[398029559,1765308647793,-1310.117049,0.00014915,2]
[398029560,1765308647803,-262.762054,0.00014915,2]
[398029561,1765308647813,-1310.117049,0.00014915,2]
[398029562,1765308647823,-1310.117049,0.00014915,2]
[398029563,1765308647833,-1310.117049,0.00014915,2]
[398029564,1765308647843,-1500.0,0.00014916,2]
[398029565,1765308647853,-1500.0,0.00014916,2]
[398029566,1765308647863,-1500.0,0.00014916,2]
[398029567,1765308647872,-1500.0,0.00014916,2]
[398029568,1765308647882,-2000.0,0.00014916,2]
[398029569,1765308647891,-2000.0,0.00014916,2]
[398029570,1765308647901,-260.23464186,0.00014968,2]
[398029571,1765308647911,-800.0,0.00015068,2]
[398029572,1765308647920,-301.18648996,0.00015177,2]
[398029573,1765308647931,-400.0,0.00015268,2]
[398029574,1765308647941,-553.64373807,0.00015268,2]
[398029575,1765308647951,-600.0,0.00015316,2]
[398029576,1765308647960,-151.0,0.00015342,2]
[398029577,1765308647970,-560.964267,0.00015342,2]
[398029578,1765308647980,-560.964267,0.00015342,2]
[398029579,1765308647990,-560.964267,0.00015342,2]
[398029580,1765308648000,-151.0,0.00015342,2]
[398029581,1765308648013,-361.143071,0.00015342,2]
[398029582,1765308648023,-560.964267,0.00015342,2]
[398029583,1765308648033,-151.0,0.00015342,2]
[398029584,1765308648043,-361.143071,0.00015342,2]
[398029585,1765308648054,-151.0,0.00015342,2]
[398029586,1765308648067,-361.143071,0.00015342,2]
[398029587,1765308648077,-151.0,0.00015342,2]
[398029588,1765308648087,-361.143071,0.00015342,2]
[398029589,1765308648097,-222.495628,0.00015342,2]
[398029590,1765308648108,-151.0,0.00015342,2]
[398029591,1765308648118,-222.495628,0.00015342,2]
[398029592,1765308648129,-356.157462,0.00015342,2]
[398029593,1765308648139,-222.495628,0.00015342,2]
[398029594,1765308648148,-356.157462,0.00015342,2]
[398029595,1765308648158,-151.0,0.00015342,2]
[398029596,1765308648168,-356.157462,0.00015342,2]
[398029597,1765308648178,-222.495628,0.00015342,2]
[398029598,1765308648187,-356.157462,0.00015342,2]
[398029599,1765308648197,-151.0,0.00015342,2]
[398029600,1765308648209,-381.563495,0.00015342,2]
[398029601,1765308648227,-151.0,0.00015342,2]
[398029602,1765308648247,-381.563495,0.00015342,2]
[398029603,1765308648257,-381.563495,0.00015342,2]
[398029604,1765308648267,-381.563495,0.00015342,2]
[398029605,1765308648276,-409.17794,0.00015342,2]
[398029606,1765308648287,-409.17794,0.00015342,2]
[398029607,1765308648296,-409.17794,0.00015342,2]
[398029608,1765308648306,-409.17794,0.00015342,2]
[398029609,1765308648316,-239.177355,0.00015342,2]
[398029610,1765308648327,-239.177355,0.00015342,2]
[398029611,1765308648336,-460.0,0.00015342,2]
[398029612,1765308648348,-239.177355,0.00015342,2]
[398029613,1765308648358,-239.177355,0.00015342,2]
[398029614,1765308648368,-262.762054,0.00015342,2]
[398029615,1765308648382,-262.762054,0.00015342,2]
[398029616,1765308648395,-262.762054,0.00015342,2]
[398029617,1765308648405,-262.762054,0.00015342,2]
[398029618,1765308648415,-1310.117049,0.00015342,2]
[398029619,1765308648427,-1310.117049,0.00015342,2]
[398029620,1765308648439,-1310.117049,0.00015342,2]
[398029621,1765308648449,-1310.117049,0.00015342,2]
[398029622,1765308648459,-1000.0,0.00015342,2]
[398029623,1765308648470,-1000.0,0.00015342,2]
[398029624,1765308648480,-1000.0,0.00015342,2]
[398029625,1765308648490,-1000.0,0.00015342,2]
[398029626,1765308648502,-2000.0,0.00015342,2]
[398029627,1765308648513,-2000.0,0.00015342,2]
[398029628,1765308648522,-806.865489,0.00015461,2]
[398029629,1765308648532,-806.865489,0.00015461,2]
[398029630,1765308648544,-806.865489,0.00015461,2]
[398029631,1765308648554,-806.865489,0.00015461,2]
[398029632,1765308648564,-151.0,0.00015461,2]
[398029633,1765308648576,-151.0,0.00015461,2]
[398029634,1765308648585,-3690.550776,0.00015461,2]
[398029635,1765308648597,-3690.550776,0.00015461,2]
[398029636,1765308648607,-3690.550776,0.00015461,2]
[398029637,1765308648616,-3690.550776,0.00015461,2]
[398029638,1765308648629,-151.0,0.00015461,2]
[398029639,1765308648639,-250.066685,0.00015461,2]
[398029640,1765308648648,-250.066685,0.00015461,2]
[398029641,1765308648658,-250.066685,0.00015461,2]
[398029642,1765308648668,-250.066685,0.00015461,2]
[398029643,1765308648678,-151.0,0.00015461,2]
[398029644,1765308648689,-151.0,0.00015461,2]
[398029645,1765308648699,-151.0,0.00015461,2]
[398029646,1765308648709,-151.0,0.00015461,2]
[398029647,1765308648719,-151.0,0.00015461,2]
[398029648,1765308648728,-151.0,0.00015461,2]
[398029649,1765308648738,-151.0,0.00015461,2]
[398029650,1765308648747,-232.647759,0.00015461,2]
[398029651,1765308648758,-176.537843,0.00015461,2]
[398029652,1765308648767,-151.0,0.00015461,2]
[398029653,1765308648777,-176.537843,0.00015461,2]
[398029654,1765308648786,-176.537843,0.00015461,2]
[398029655,1765308648796,-176.537843,0.00015461,2]
[398029656,1765308648805,-151.0,0.00015461,2]
[398029657,1765308648814,-718.923835,0.00015461,2]
[398029658,1765308648823,-151.0,0.00015461,2]
[398029659,1765308648833,-151.0,0.00015461,2]
[398029660,1765308648842,-718.923835,0.00015461,2]
[398029661,1765308648851,-255.082112,0.00015461,2]
[398029662,1765308648861,-718.923835,0.00015461,2]
[398029663,1765308648870,-718.923835,0.00015461,2]
[398029664,1765308648880,-151.0,0.00015461,2]
[398029665,1765308648889,-234.26739,0.00015461,2]
[398029666,1765308648899,-151.0,0.00015461,2]
[398029667,1765308648908,-262.762054,0.00015461,2]
[398029668,1765308648918,-262.762054,0.00015461,2]
[398029669,1765308648928,-262.762054,0.00015461,2]
[398029670,1765308648938,-262.762054,0.00015461,2]
[398029671,1765308648950,-1310.117049,0.00015461,2]
[398029672,1765308648959,-1310.117049,0.00015461,2]
[398029673,1765308648968,-1310.117049,0.00015461,2]
[398029674,1765308648977,-1310.117049,0.00015461,2]
[398029675,1765308648987,-151.0,0.00015462,2]
[398029676,1765308648996,-151.0,0.00015462,2]
[398029677,1765308649005,-151.0,0.00015462,2]
[398029678,1765308649015,-151.0,0.00015462,2]
[398029679,1765308649024,-202.590626,0.00015462,2]
[398029680,1765308649034,-202.590626,0.00015462,2]
[398029681,1765308649043,-202.590626,0.00015462,2]
[398029682,1765308649052,-202.590626,0.00015462,2]
[398029683,1765308649071,-172.888954,0.00015462,2]
[398029684,1765308649082,-172.888954,0.00015462,2]